[Event "*** Titled Tuesday Blitz"]
[Site "Chess.com"]
[Date "2020.12.01"]
[Round "3"]
[White "03revilo"]
[Black "Neftegor"]
[Result "1-0"]
[WhiteElo "2333"]
[BlackElo "2517"]
[TimeControl "180+1"]
[EndTime "10:29:00 PST"]
[Termination "03revilo won by checkmate"]

1. e4 {[%clk 0:03:00.9]} 1... e5 {[%clk 0:02:58.6]} 2. Nf3 {[%clk 0:02:48.6]}
2... Nc6 {[%clk 0:02:58.5]} 3. Bc4 {[%clk 0:02:48.1]} 3... Bc5 {[%clk 0:02:57]}
4. O-O {[%clk 0:02:48.4]} 4... d6 {[%clk 0:02:56.8]} 5. c3 {[%clk 0:02:48.2]}
5... Nf6 {[%clk 0:02:56]} 6. d3 {[%clk 0:02:48.6]} 6... a6 {[%clk 0:02:54.2]} 7.
Bb3 {[%clk 0:02:47.6]} 7... Ba7 {[%clk 0:02:53.7]} 8. Re1 {[%clk 0:02:48]} 8...
O-O {[%clk 0:02:52.5]} 9. h3 {[%clk 0:02:48.6]} 9... h6 {[%clk 0:02:52]} 10.
Nbd2 {[%clk 0:02:49.2]} 10... Nh5 {[%clk 0:02:52]} 11. Nf1 {[%clk 0:02:49.4]}
11... Qf6 {[%clk 0:02:51.3]} 12. Be3 {[%clk 0:02:47.9]} 12... Nf4 {[%clk
0:02:50.4]} 13. Bxa7 {[%clk 0:02:09]} 13... Rxa7 {[%clk 0:02:49.5]} 14. Ne3
{[%clk 0:02:08.9]} 14... Qg6 {[%clk 0:02:45.4]} 15. Nh4 {[%clk 0:01:19.6]} 15...
Nxh3+ {[%clk 0:02:35]} 16. Kh2 {[%clk 0:01:19.2]} 16... Qf6 {[%clk 0:02:34.7]}
17. Nhf5 {[%clk 0:00:46.9]} 17... Nf4 {[%clk 0:01:04]} 18. g3 {[%clk 0:00:43.2]}
18... Bxf5 {[%clk 0:00:49.4]} 19. exf5 {[%clk 0:00:29.7]} 19... e4 {[%clk
0:00:41]} 20. gxf4 {[%clk 0:00:27.5]} 20... Qh4+ {[%clk 0:00:40.9]} 21. Kg1
{[%clk 0:00:26.9]} 21... Qxf4 {[%clk 0:00:40.9]} 22. dxe4 {[%clk 0:00:22.1]}
22... Ne5 {[%clk 0:00:39.8]} 23. Nd5 {[%clk 0:00:02.4]} 23... Qg5+ {[%clk
0:00:34.7]} 24. Kf1 {[%clk 0:00:02.5]} 24... Qh4 {[%clk 0:00:34.7]} 25. Re3
{[%clk 0:00:02.9]} 25... Ng4 {[%clk 0:00:29.9]} 26. Rg3 {[%clk 0:00:02.5]} 26...
Qh1+ {[%clk 0:00:28.7]} 27. Ke2 {[%clk 0:00:02.5]} 27... Qxe4+ {[%clk
0:00:28.5]} 28. Kf1 {[%clk 0:00:01.6]} 28... Re8 {[%clk 0:00:24.2]} 29. Qxg4
{[%clk 0:00:01.3]} 29... Qxg4 {[%clk 0:00:23.5]} 30. Rxg4 {[%clk 0:00:02.2]}
30... h5 {[%clk 0:00:21.1]} 31. Rg2 {[%clk 0:00:01.9]} 31... c6 {[%clk
0:00:20.7]} 32. Ne3 {[%clk 0:00:02.6]} 32... d5 {[%clk 0:00:20]} 33. Re1 {[%clk
0:00:03.1]} 33... Raa8 {[%clk 0:00:20.3]} 34. Nc2 {[%clk 0:00:03.3]} 34... Kf8
{[%clk 0:00:20.6]} 35. Rxe8+ {[%clk 0:00:02.7]} 35... Rxe8 {[%clk 0:00:20.6]}
36. Rg3 {[%clk 0:00:03.6]} 36... Re5 {[%clk 0:00:20.6]} 37. Re3 {[%clk
0:00:04.1]} 37... Rxf5 {[%clk 0:00:20.8]} 38. Nd4 {[%clk 0:00:04.7]} 38... Rg5
{[%clk 0:00:20.4]} 39. Bc2 {[%clk 0:00:05.1]} 39... g6 {[%clk 0:00:20.4]} 40.
Nf3 {[%clk 0:00:05.4]} 40... Rg4 {[%clk 0:00:20]} 41. Ke2 {[%clk 0:00:05.7]}
41... Rf4 {[%clk 0:00:19.6]} 42. Ne5 {[%clk 0:00:05.8]} 42... Kg7 {[%clk
0:00:18.1]} 43. Nd3 {[%clk 0:00:05.6]} 43... Rf6 {[%clk 0:00:17.9]} 44. Nc5
{[%clk 0:00:05.9]} 44... h4 {[%clk 0:00:18]} 45. Nxb7 {[%clk 0:00:05.3]} 45...
h3 {[%clk 0:00:17.5]} 46. Rxh3 {[%clk 0:00:05.1]} 46... Re6+ {[%clk 0:00:17.6]}
47. Re3 {[%clk 0:00:05.6]} 47... Re7 {[%clk 0:00:18.5]} 48. Nc5 {[%clk
0:00:05.4]} 48... Rc7 {[%clk 0:00:18.2]} 49. Nxa6 {[%clk 0:00:05.4]} 49... Ra7
{[%clk 0:00:18.2]} 50. Nb4 {[%clk 0:00:06.1]} 50... Rxa2 {[%clk 0:00:18.8]} 51.
Nxa2 {[%clk 0:00:05]} 51... d4 {[%clk 0:00:18.4]} 52. cxd4 {[%clk 0:00:05]}
52... c5 {[%clk 0:00:18.2]} 53. Rc3 {[%clk 0:00:05.6]} 53... g5 {[%clk
0:00:18.6]} 54. dxc5 {[%clk 0:00:05.4]} 54... g4 {[%clk 0:00:19]} 55. c6 {[%clk
0:00:06]} 55... Kf6 {[%clk 0:00:19.9]} 56. c7 {[%clk 0:00:06.2]} 56... Ke5
{[%clk 0:00:20.7]} 57. c8=Q {[%clk 0:00:06.7]} 57... f5 {[%clk 0:00:21.6]} 58.
Qc7+ {[%clk 0:00:06.7]} 58... Kf6 {[%clk 0:00:21.4]} 59. Rc6+ {[%clk 0:00:06.9]}
59... Kg5 {[%clk 0:00:22.3]} 60. Qg7+ {[%clk 0:00:07.2]} 60... Kf4 {[%clk
0:00:23.2]} 61. Rc4# {[%clk 0:00:07.2]} 1-0

[Event "*** Titled Tuesday Blitz"]
[Site "Chess.com"]
[Date "2020.12.01"]
[Round "3"]
[White "ljuks68"]
[Black "Vandros57"]
[Result "1-0"]
[WhiteElo "2383"]
[BlackElo "2149"]
[TimeControl "180+1"]
[EndTime "10:29:00 PST"]
[Termination "ljuks68 won on time"]

1. e4 {[%clk 0:03:00.9]} 1... c5 {[%clk 0:02:58.9]} 2. Nf3 {[%clk 0:03:00.4]}
2... Nc6 {[%clk 0:02:58.1]} 3. d4 {[%clk 0:02:59.8]} 3... cxd4 {[%clk
0:02:57.1]} 4. Nxd4 {[%clk 0:03:00.2]} 4... e5 {[%clk 0:02:56.7]} 5. Nb5 {[%clk
0:02:59.5]} 5... a6 {[%clk 0:02:56.7]} 6. Nd6+ {[%clk 0:02:58.9]} 6... Bxd6
{[%clk 0:02:56.1]} 7. Qxd6 {[%clk 0:02:59.4]} 7... Qe7 {[%clk 0:02:54.9]} 8. Qd1
{[%clk 0:02:58.7]} 8... Nf6 {[%clk 0:02:51]} 9. Nc3 {[%clk 0:02:58.9]} 9... d6
{[%clk 0:02:38.2]} 10. Bg5 {[%clk 0:02:58.1]} 10... Be6 {[%clk 0:02:34.4]} 11.
Nd5 {[%clk 0:02:57.3]} 11... Bxd5 {[%clk 0:02:33.5]} 12. exd5 {[%clk 0:02:57.2]}
12... Nb8 {[%clk 0:02:32]} 13. Be2 {[%clk 0:02:51.9]} 13... Nbd7 {[%clk
0:02:30.4]} 14. c4 {[%clk 0:02:47]} 14... O-O {[%clk 0:02:29.3]} 15. O-O {[%clk
0:02:45.3]} 15... h6 {[%clk 0:02:27.9]} 16. Be3 {[%clk 0:02:44.1]} 16... a5
{[%clk 0:02:22.7]} 17. b3 {[%clk 0:02:42.6]} 17... b6 {[%clk 0:02:20.9]} 18. a3
{[%clk 0:02:41.7]} 18... Nh7 {[%clk 0:02:15.1]} 19. b4 {[%clk 0:02:30.8]} 19...
axb4 {[%clk 0:02:12.5]} 20. axb4 {[%clk 0:02:29.9]} 20... f5 {[%clk 0:02:10.9]}
21. f3 {[%clk 0:02:28.9]} 21... f4 {[%clk 0:02:08.2]} 22. Bf2 {[%clk 0:02:27.8]}
22... Nhf6 {[%clk 0:02:04]} 23. Bd3 {[%clk 0:02:21.5]} 23... e4 {[%clk
0:01:58.5]} 24. fxe4 {[%clk 0:02:20.5]} 24... Nxe4 {[%clk 0:01:39.1]} 25. Re1
{[%clk 0:02:20.1]} 25... Nxf2 {[%clk 0:01:35.7]} 26. Rxe7 {[%clk 0:01:44.2]}
26... Nxd1 {[%clk 0:01:34.1]} 27. Rxa8 {[%clk 0:01:35.8]} 27... Rxa8 {[%clk
0:01:30.5]} 28. Rxd7 {[%clk 0:01:35.2]} 28... Ra1 {[%clk 0:01:22.6]} 29. Bg6
{[%clk 0:01:33.1]} 29... Kf8 {[%clk 0:00:22.2]} 30. Rf7+ {[%clk 0:01:31.8]}
30... Kg8 {[%clk 0:00:18.2]} 31. Re7 {[%clk 0:01:31.6]} 31... Ne3+ {[%clk
0:00:16.6]} 32. Kf2 {[%clk 0:01:30.8]} 32... Ng4+ {[%clk 0:00:15.3]} 33. Kf3
{[%clk 0:01:19.8]} 33... Ne5+ {[%clk 0:00:14.5]} 34. Ke4 {[%clk 0:01:10.7]}
34... Nxg6 {[%clk 0:00:13.8]} 35. Re6 {[%clk 0:01:10.3]} 35... Kf7 {[%clk
0:00:12.6]} 36. Rxd6 {[%clk 0:01:09.6]} 36... Re1+ {[%clk 0:00:12.2]} 37. Kd4
{[%clk 0:01:04.3]} 37... Rg1 {[%clk 0:00:11.6]} 38. Rxb6 {[%clk 0:01:02.6]}
38... Rxg2 {[%clk 0:00:11.4]} 39. Rb7+ {[%clk 0:01:00.7]} 39... Kf6 {[%clk
0:00:11]} 40. d6 {[%clk 0:00:59.8]} 40... Ne5 {[%clk 0:00:10.6]} 41. d7 {[%clk
0:00:56.7]} 41... f3 {[%clk 0:00:10]} 42. Ke3 {[%clk 0:00:52.4]} 42... Nxd7
{[%clk 0:00:08.6]} 43. Rxd7 {[%clk 0:00:51]} 43... Re2+ {[%clk 0:00:07.4]} 44.
Kxf3 {[%clk 0:00:50.8]} 44... Rb2 {[%clk 0:00:06.6]} 45. b5 {[%clk 0:00:50]}
45... Rxh2 {[%clk 0:00:04.9]} 46. b6 {[%clk 0:00:47.8]} 46... Rc2 {[%clk
0:00:04.1]} 47. b7 {[%clk 0:00:47]} 47... Rb2 {[%clk 0:00:04.3]} 48. c5 {[%clk
0:00:46.7]} 48... Ke6 {[%clk 0:00:04.3]} 49. c6 {[%clk 0:00:46.4]} 49... Rb6
{[%clk 0:00:03.9]} 50. Rxg7 {[%clk 0:00:45.1]} 50... Kd6 {[%clk 0:00:03.7]} 51.
c7 {[%clk 0:00:44.5]} 51... Rxb7 {[%clk 0:00:02.8]} 52. c8=Q {[%clk 0:00:40.8]}
52... Rxg7 {[%clk 0:00:02.5]} 53. Kf4 {[%clk 0:00:35]} 53... Re7 {[%clk
0:00:02.3]} 54. Kf5 {[%clk 0:00:32.7]} 54... Re5+ {[%clk 0:00:02.4]} 55. Kf6
{[%clk 0:00:32.6]} 55... Rc5 {[%clk 0:00:02.7]} 56. Qd8+ {[%clk 0:00:31]} 56...
Kc6 {[%clk 0:00:02.2]} 57. Ke6 {[%clk 0:00:31.4]} 57... Kb5 {[%clk 0:00:02.2]}
58. Qd3+ {[%clk 0:00:29.9]} 58... Rc4 {[%clk 0:00:02]} 59. Kd5 {[%clk 0:00:29]}
1-0

[Event "*** Titled Tuesday Blitz"]
[Site "Chess.com"]
[Date "2020.12.01"]
[Round "3"]
[White "emiliochess"]
[Black "GothamChess"]
[Result "0-1"]
[WhiteElo "2353"]
[BlackElo "2567"]
[TimeControl "180+1"]
[EndTime "10:29:01 PST"]
[Termination "GothamChess won by checkmate"]

1. d4 {[%clk 0:03:00.9]} 1... Nf6 {[%clk 0:02:59]} 2. Bf4 {[%clk 0:03:01.2]}
2... d5 {[%clk 0:02:57.6]} 3. e3 {[%clk 0:03:01.1]} 3... e6 {[%clk 0:02:58.2]}
4. Bd3 {[%clk 0:03:00.4]} 4... c5 {[%clk 0:02:57.8]} 5. c3 {[%clk 0:03:00]} 5...
Nc6 {[%clk 0:02:57.4]} 6. Nd2 {[%clk 0:02:59.4]} 6... Bd6 {[%clk 0:02:57]} 7.
Bg3 {[%clk 0:02:58]} 7... e5 {[%clk 0:02:57.1]} 8. dxe5 {[%clk 0:02:48]} 8...
Nxe5 {[%clk 0:02:54.7]} 9. Bb5+ {[%clk 0:02:45.4]} 9... Bd7 {[%clk 0:02:41.9]}
10. Bxd7+ {[%clk 0:02:43.1]} 10... Qxd7 {[%clk 0:02:40.8]} 11. Bxe5 {[%clk
0:02:43]} 11... Bxe5 {[%clk 0:02:40]} 12. Ndf3 {[%clk 0:02:20.9]} 12... Bc7
{[%clk 0:02:39.6]} 13. Ne2 {[%clk 0:02:20.1]} 13... O-O {[%clk 0:02:37.5]} 14.
Qc2 {[%clk 0:02:19.8]} 14... b6 {[%clk 0:02:26.7]} 15. Rd1 {[%clk 0:02:18.4]}
15... Qe7 {[%clk 0:02:19.2]} 16. Qf5 {[%clk 0:02:09.6]} 16... Rad8 {[%clk
0:02:14.6]} 17. O-O {[%clk 0:02:09.6]} 17... Rfe8 {[%clk 0:02:13]} 18. Rd2
{[%clk 0:02:03.4]} 18... Ne4 {[%clk 0:01:57.4]} 19. Rdd1 {[%clk 0:01:40]} 19...
g6 {[%clk 0:01:54.5]} 20. Qh3 {[%clk 0:01:35.8]} 20... f5 {[%clk 0:01:44.7]} 21.
Qh4 {[%clk 0:01:22.4]} 21... Qxh4 {[%clk 0:01:39.3]} 22. Nxh4 {[%clk 0:01:23.3]}
22... a5 {[%clk 0:01:38.1]} 23. a4 {[%clk 0:01:20.7]} 23... Be5 {[%clk
0:01:32.7]} 24. Nf3 {[%clk 0:01:19.9]} 24... Bc7 {[%clk 0:01:27.1]} 25. Ng3
{[%clk 0:01:17.4]} 25... Bxg3 {[%clk 0:01:25]} 26. hxg3 {[%clk 0:01:18.3]} 26...
Re7 {[%clk 0:01:18.8]} 27. Nd2 {[%clk 0:01:02.2]} 27... Nf6 {[%clk 0:01:15.4]}
28. Nb3 {[%clk 0:01:01.4]} 28... Kf7 {[%clk 0:01:14.1]} 29. Rd2 {[%clk
0:00:56.5]} 29... Ne4 {[%clk 0:01:12.2]} 30. Rdd1 {[%clk 0:00:55.2]} 30... h5
{[%clk 0:01:12.5]} 31. Kh2 {[%clk 0:00:51.4]} 31... Kf6 {[%clk 0:01:10.3]} 32.
f3 {[%clk 0:00:49.7]} 32... Ng5 {[%clk 0:01:08.7]} 33. e4 {[%clk 0:00:47.3]}
33... Red7 {[%clk 0:00:57.8]} 34. exd5 {[%clk 0:00:38.5]} 34... Rxd5 {[%clk
0:00:57.6]} 35. Rxd5 {[%clk 0:00:38.8]} 35... Rxd5 {[%clk 0:00:58.5]} 36. Rf2
{[%clk 0:00:39.4]} 36... Ne6 {[%clk 0:00:46.4]} 37. g4 {[%clk 0:00:34.5]} 37...
hxg4 {[%clk 0:00:43.4]} 38. fxg4 {[%clk 0:00:35.4]} 38... f4 {[%clk 0:00:43.8]}
39. g3 {[%clk 0:00:35.4]} 39... Kg5 {[%clk 0:00:38.6]} 40. Kh3 {[%clk
0:00:22.5]} 40... Rd3 {[%clk 0:00:35.6]} 41. Rg2 {[%clk 0:00:16.2]} 41... c4
{[%clk 0:00:09.6]} 42. Nd2 {[%clk 0:00:15.8]} 42... fxg3 {[%clk 0:00:08.7]} 43.
Ne4+ {[%clk 0:00:16.1]} 43... Kf4 {[%clk 0:00:07.9]} 44. Nf6 {[%clk 0:00:06.6]}
44... Ng5+ {[%clk 0:00:02.8]} 45. Kh4 {[%clk 0:00:06.8]} 45... Rd8 {[%clk
0:00:02.3]} 46. Rxg3 {[%clk 0:00:02.7]} 46... Rh8+ {[%clk 0:00:02.5]} 47. Nh5+
{[%clk 0:00:03.4]} 47... gxh5 {[%clk 0:00:02.3]} 48. gxh5 {[%clk 0:00:04.3]}
48... Ne4 {[%clk 0:00:01.9]} 49. Rg4+ {[%clk 0:00:05]} 49... Kf5 {[%clk
0:00:02.2]} 50. Rg7 {[%clk 0:00:05.9]} 50... Nf6 {[%clk 0:00:02.4]} 51. Rb7
{[%clk 0:00:06.3]} 51... Rxh5+ {[%clk 0:00:02.7]} 52. Kg3 {[%clk 0:00:07.2]}
52... Rg5+ {[%clk 0:00:02.9]} 53. Kf3 {[%clk 0:00:07.2]} 53... Nd5 {[%clk
0:00:03.5]} 54. Rd7 {[%clk 0:00:07.3]} 54... Ke6 {[%clk 0:00:03.9]} 55. Rd8
{[%clk 0:00:06.8]} 55... Rf5+ {[%clk 0:00:04.1]} 56. Ke4 {[%clk 0:00:06.6]}
56... Rf4# {[%clk 0:00:04.8]} 0-1

[Event "*** Titled Tuesday Blitz"]
[Site "Chess.com"]
[Date "2020.12.01"]
[Round "3"]
[White "PSvidler"]
[Black "TimurGareyev"]
[Result "1-0"]
[WhiteElo "2861"]
[BlackElo "2607"]
[TimeControl "180+1"]
[EndTime "10:29:02 PST"]
[Termination "PSvidler won by resignation"]

1. c4 {[%clk 0:03:00.9]} 1... e5 {[%clk 0:02:57.8]} 2. g3 {[%clk 0:02:59.9]}
2... Nf6 {[%clk 0:02:56.3]} 3. Bg2 {[%clk 0:03:00]} 3... h5 {[%clk 0:02:56.6]}
4. Nf3 {[%clk 0:02:54.2]} 4... Nc6 {[%clk 0:02:56.3]} 5. Nc3 {[%clk 0:02:48.7]}
5... Bb4 {[%clk 0:02:53.9]} 6. Nd5 {[%clk 0:02:42.3]} 6... a5 {[%clk 0:02:54.1]}
7. a3 {[%clk 0:02:32.3]} 7... Be7 {[%clk 0:02:50.5]} 8. d3 {[%clk 0:02:30.7]}
8... d6 {[%clk 0:02:50.7]} 9. Nxe7 {[%clk 0:02:25.2]} 9... Nxe7 {[%clk
0:02:49.2]} 10. Bg5 {[%clk 0:02:18.3]} 10... Nh7 {[%clk 0:02:47.9]} 11. Bd2
{[%clk 0:02:16.5]} 11... c6 {[%clk 0:02:41.1]} 12. c5 {[%clk 0:02:13.1]} 12...
dxc5 {[%clk 0:02:38.3]} 13. Nxe5 {[%clk 0:02:12.2]} 13... h4 {[%clk 0:02:37.4]}
14. Rc1 {[%clk 0:02:09.3]} 14... Qd6 {[%clk 0:02:23.9]} 15. Bf4 {[%clk
0:02:06.2]} 15... Qd4 {[%clk 0:01:57.3]} 16. Nc4 {[%clk 0:02:04.4]} 16... O-O
{[%clk 0:01:51.4]} 17. Be3 {[%clk 0:02:03.1]} 17... Qf6 {[%clk 0:01:44.4]} 18.
Bxc5 {[%clk 0:02:00.8]} 18... h3 {[%clk 0:01:43.9]} 19. Be4 {[%clk 0:02:00.5]}
19... Ng5 {[%clk 0:01:44.1]} 20. f4 {[%clk 0:01:59]} 20... Ne6 {[%clk
0:01:21.6]} 21. Bf2 {[%clk 0:01:57.3]} 21... Nd5 {[%clk 0:01:13.9]} 22. Qd2
{[%clk 0:01:54.7]} 22... Rd8 {[%clk 0:01:11.9]} 23. O-O {[%clk 0:01:37.9]} 23...
Nd4 {[%clk 0:01:11.5]} 24. Bxd4 {[%clk 0:01:28]} 24... Qxd4+ {[%clk 0:01:12.4]}
25. e3 {[%clk 0:01:28.6]} 25... Qf6 {[%clk 0:01:07.8]} 26. d4 {[%clk 0:01:17]}
26... Bf5 {[%clk 0:01:03.6]} 27. Bf3 {[%clk 0:01:16.6]} 27... Ne7 {[%clk
0:00:54.2]} 28. Nxa5 {[%clk 0:01:05.5]} 28... Rab8 {[%clk 0:00:45.2]} 29. Nc4
{[%clk 0:01:04.2]} 29... c5 {[%clk 0:00:44.9]} 30. d5 {[%clk 0:01:02.9]} 30...
Nxd5 {[%clk 0:00:45.1]} 31. Bxd5 {[%clk 0:00:53.5]} 31... Be4 {[%clk 0:00:44.9]}
32. Bxe4 {[%clk 0:00:53.2]} 32... Rxd2 {[%clk 0:00:44.3]} 33. Nxd2 {[%clk
0:00:54.1]} 33... Qxb2 {[%clk 0:00:44.8]} 34. Rc2 {[%clk 0:00:53]} 34... Qxa3
{[%clk 0:00:44.9]} 35. Kf2 {[%clk 0:00:50.4]} 35... b5 {[%clk 0:00:43.4]} 36.
Rb1 {[%clk 0:00:48.2]} 36... Re8 {[%clk 0:00:32.8]} 37. Rxb5 {[%clk 0:00:38.6]}
37... Qa4 {[%clk 0:00:32.6]} 38. Bd3 {[%clk 0:00:35.2]} 38... Qa3 {[%clk
0:00:22.3]} 39. Rb3 {[%clk 0:00:33.9]} 39... Qa1 {[%clk 0:00:22.6]} 40. Bf1
{[%clk 0:00:30.8]} 40... Qd1 {[%clk 0:00:21.5]} 41. Rbc3 {[%clk 0:00:29.2]}
41... Rd8 {[%clk 0:00:20.3]} 42. Nf3 {[%clk 0:00:28.2]} 42... c4 {[%clk
0:00:17.5]} 43. Rxc4 {[%clk 0:00:27.1]} 43... g6 {[%clk 0:00:16.1]} 44. Bxh3
{[%clk 0:00:27]} 44... Rb8 {[%clk 0:00:15.8]} 45. Rd2 {[%clk 0:00:22.5]} 45...
Qa1 {[%clk 0:00:13.6]} 46. Rc8+ {[%clk 0:00:22.1]} 46... Rxc8 {[%clk 0:00:13.3]}
47. Bxc8 {[%clk 0:00:23]} 47... Qh1 {[%clk 0:00:13.5]} 48. Bb7 {[%clk
0:00:22.5]} 48... Qb1 {[%clk 0:00:13.5]} 49. Bd5 {[%clk 0:00:22.4]} 49... Kg7
{[%clk 0:00:14.4]} 50. h4 {[%clk 0:00:22.1]} 50... Qh1 {[%clk 0:00:14.5]} 51. e4
{[%clk 0:00:21.4]} 51... Qa1 {[%clk 0:00:14.6]} 52. e5 {[%clk 0:00:21.5]} 52...
Qh1 {[%clk 0:00:14.4]} 53. Ng5 {[%clk 0:00:18.8]} 53... Qh2+ {[%clk 0:00:14]}
54. Bg2 {[%clk 0:00:18.4]} 1-0

[Event "*** Titled Tuesday Blitz"]
[Site "Chess.com"]
[Date "2020.12.01"]
[Round "3"]
[White "Kaslask"]
[Black "Chamal_Gedgafov"]
[Result "0-1"]
[WhiteElo "2325"]
[BlackElo "2175"]
[TimeControl "180+1"]
[EndTime "10:29:03 PST"]
[Termination "Chamal_Gedgafov won by checkmate"]

1. d4 {[%clk 0:03:00.9]} 1... Nf6 {[%clk 0:02:42]} 2. c4 {[%clk 0:03:00]} 2...
e6 {[%clk 0:02:40.9]} 3. Nf3 {[%clk 0:02:59.1]} 3... b6 {[%clk 0:02:35.9]} 4. a3
{[%clk 0:02:57.7]} 4... Ba6 {[%clk 0:02:35.4]} 5. Nbd2 {[%clk 0:02:52.4]} 5...
d5 {[%clk 0:02:34.2]} 6. e3 {[%clk 0:02:47.1]} 6... Be7 {[%clk 0:02:33]} 7. Qc2
{[%clk 0:02:44.6]} 7... O-O {[%clk 0:02:31.8]} 8. b4 {[%clk 0:02:44.2]} 8... c5
{[%clk 0:02:27.6]} 9. dxc5 {[%clk 0:02:40.4]} 9... bxc5 {[%clk 0:02:25.6]} 10.
b5 {[%clk 0:02:40.3]} 10... Bb7 {[%clk 0:02:25.5]} 11. Bb2 {[%clk 0:02:40.4]}
11... Nbd7 {[%clk 0:02:20.3]} 12. Bd3 {[%clk 0:02:39.5]} 12... d4 {[%clk
0:02:10]} 13. O-O {[%clk 0:02:31.9]} 13... dxe3 {[%clk 0:02:04]} 14. fxe3 {[%clk
0:02:31.1]} 14... Qc7 {[%clk 0:02:01.7]} 15. Rae1 {[%clk 0:02:26.6]} 15... Rad8
{[%clk 0:01:54.1]} 16. e4 {[%clk 0:02:22.9]} 16... e5 {[%clk 0:01:44.2]} 17. Nh4
{[%clk 0:02:21.8]} 17... g6 {[%clk 0:01:30.8]} 18. Ndf3 {[%clk 0:02:12.4]} 18...
Nh5 {[%clk 0:01:28]} 19. Bc1 {[%clk 0:02:05.6]} 19... Bf6 {[%clk 0:01:25]} 20.
Ng5 {[%clk 0:01:56.8]} 20... Bg7 {[%clk 0:01:18.7]} 21. g3 {[%clk 0:01:40.4]}
21... Qd6 {[%clk 0:01:00.8]} 22. Rd1 {[%clk 0:01:36]} 22... f6 {[%clk
0:00:51.8]} 23. Ngf3 {[%clk 0:01:33.6]} 23... Qe7 {[%clk 0:00:47.9]} 24. Be3
{[%clk 0:01:28.9]} 24... Rfe8 {[%clk 0:00:43.6]} 25. a4 {[%clk 0:01:26.5]} 25...
Nf8 {[%clk 0:00:42.3]} 26. a5 {[%clk 0:01:25.8]} 26... Ne6 {[%clk 0:00:42.1]}
27. Qc1 {[%clk 0:01:23.4]} 27... Nd4 {[%clk 0:00:39]} 28. Bh6 {[%clk 0:01:13.1]}
28... Bh8 {[%clk 0:00:32]} 29. Be3 {[%clk 0:01:11.2]} 29... Rd7 {[%clk
0:00:28.2]} 30. Ng2 {[%clk 0:00:59.7]} 30... Red8 {[%clk 0:00:27]} 31. Bxd4
{[%clk 0:00:56]} 31... exd4 {[%clk 0:00:24.7]} 32. Rde1 {[%clk 0:00:55.6]} 32...
Re8 {[%clk 0:00:23.1]} 33. Nf4 {[%clk 0:00:54.7]} 33... Nxf4 {[%clk 0:00:19.3]}
34. Qxf4 {[%clk 0:00:54.3]} 34... Qd6 {[%clk 0:00:18.4]} 35. e5 {[%clk
0:00:51.8]} 35... fxe5 {[%clk 0:00:17.7]} 36. Nxe5 {[%clk 0:00:51.7]} 36... Bxe5
{[%clk 0:00:16.6]} 37. Qg4 {[%clk 0:00:44.5]} 37... Rde7 {[%clk 0:00:15.5]} 38.
Bf5 {[%clk 0:00:40]} 38... Bg7 {[%clk 0:00:13.6]} 39. Bd7 {[%clk 0:00:30.1]}
39... Rxe1 {[%clk 0:00:11]} 40. Bxe8 {[%clk 0:00:27.2]} 40... Rxe8 {[%clk
0:00:09.2]} 41. a6 {[%clk 0:00:21.8]} 41... Ba8 {[%clk 0:00:07.8]} 42. h4 {[%clk
0:00:19.6]} 42... Qe6 {[%clk 0:00:06.5]} 43. Qf4 {[%clk 0:00:18.4]} 43... Qe4
{[%clk 0:00:04.5]} 44. Qf7+ {[%clk 0:00:17.6]} 44... Kh8 {[%clk 0:00:04.5]} 45.
Rf3 {[%clk 0:00:15.5]} 45... Qxf3 {[%clk 0:00:03.6]} 46. Qxe8+ {[%clk
0:00:15.1]} 46... Qf8 {[%clk 0:00:04]} 47. Qd7 {[%clk 0:00:13]} 47... Bf6 {[%clk
0:00:02.6]} 48. Qxa7 {[%clk 0:00:09.7]} 48... d3 {[%clk 0:00:02.7]} 49. Qd7
{[%clk 0:00:08.9]} 49... Bd4+ {[%clk 0:00:03.6]} 50. Kh2 {[%clk 0:00:07.3]}
50... Qf2+ {[%clk 0:00:02.9]} 51. Kh3 {[%clk 0:00:07.6]} 51... Qf5+ {[%clk
0:00:02.5]} 52. Qxf5 {[%clk 0:00:05.2]} 52... gxf5 {[%clk 0:00:03.4]} 53. h5
{[%clk 0:00:05.4]} 53... d2 {[%clk 0:00:04.3]} 54. Kh4 {[%clk 0:00:05.7]} 54...
d1=Q {[%clk 0:00:05.2]} 55. b6 {[%clk 0:00:05.9]} 55... Qg4# {[%clk 0:00:05.6]}
0-1